[Event "Titled Tuesday Blitz April 25 Early 2023"]
[White "Nery Junior, Jose Antonio"]
[Black "Goltseva, Ekaterina"]
[WhiteFideId "2104822"]
[BlackFideId "24173770"]
[WhiteElo "2197"]
[BlackElo "2200"]
[Result "0-1"]
[Round "02"]
[TimeControl "180+2"]
[Date "2023.04.25"]
[WhiteClock "0:01:41"]
[BlackClock "0:01:18"]

1. e4 {[%clk 0:02:37]}  c6 {[%clk 0:02:56]} 2. d4 {[%clk 0:02:37]}  d5 {[%clk 0:02:55]} 3. e5 {[%clk 0:02:37]}  c5 {[%clk 0:02:55]} 4. dxc5 {[%clk 0:02:37]}  Nc6 {[%clk 0:02:54]} 5. Bb5 {[%clk 0:02:35]}  e6 {[%clk 0:02:45]} 6. b4 {[%clk 0:02:34]}  Bd7 {[%clk 0:02:44]} 7. Bxc6 {[%clk 0:02:32]}  Bxc6 {[%clk 0:02:44]} 8. Nf3 {[%clk 0:02:33]}  a5 {[%clk 0:02:45]} 9. c3 {[%clk 0:02:33]}  b6 {[%clk 0:02:42]} 10. cxb6 {[%clk 0:02:29]}  axb4 {[%clk 0:02:41]} 11. O-O {[%clk 0:02:30]}  Qxb6 {[%clk 0:02:40]} 12. cxb4 {[%clk 0:02:28]}  Bxb4 {[%clk 0:02:34]} 13. Be3 {[%clk 0:02:29]}  Bc5 {[%clk 0:02:27]} 14. Bxc5 {[%clk 0:02:29]}  Qxc5 {[%clk 0:02:28]} 15. Nbd2 {[%clk 0:02:29]}  Bb5 {[%clk 0:02:24]} 16. Nb3 {[%clk 0:02:30]}  Qb6 {[%clk 0:02:17]} 17. Re1 {[%clk 0:02:29]}  Ne7 {[%clk 0:02:17]} 18. h4 {[%clk 0:02:16]}  O-O {[%clk 0:02:14]} 19. h5 {[%clk 0:02:12]}  h6 {[%clk 0:02:13]} 20. Re3 {[%clk 0:02:09]}  Nf5 {[%clk 0:02:05]} 21. Rc3 {[%clk 0:02:07]}  Rfc8 {[%clk 0:02:03]} 22. Qc1 {[%clk 0:02:02]}  Rxc3 {[%clk 0:01:53]} 23. Qxc3 {[%clk 0:02:03]}  Bc4 {[%clk 0:01:49]} 24. Nfd2 {[%clk 0:01:54]}  Rc8 {[%clk 0:01:46]} 25. Nxc4 {[%clk 0:01:54]}  Rxc4 {[%clk 0:01:38]} 26. Qd2 {[%clk 0:01:51]}  Qc7 {[%clk 0:01:21]} 27. Qf4 {[%clk 0:01:41]}  Rxf4 {[%clk 0:01:18]} 0-1


[Site "https://www.chess.com"]

[Event "Titled Tuesday Blitz April 25 Early 2023"]
[White "Korelskiy, Egor"]
[Black "Barwinska, Ewa"]
[WhiteFideId "34329064"]
[BlackFideId "21833761"]
[WhiteElo "2186"]
[BlackElo "1908"]
[Result "1-0"]
[Round "02"]
[TimeControl "180+2"]
[Date "2023.04.25"]
[WhiteClock "0:00:09"]
[BlackClock "0:00:11"]

1. e4 {[%clk 0:03:00]}  c5 {[%clk 0:02:59]} 2. Nf3 {[%clk 0:02:57]}  d6 {[%clk 0:02:59]} 3. d4 {[%clk 0:02:56]}  cxd4 {[%clk 0:03:00]} 4. Nxd4 {[%clk 0:02:57]}  Nf6 {[%clk 0:03:01]} 5. Nc3 {[%clk 0:02:57]}  a6 {[%clk 0:03:02]} 6. h3 {[%clk 0:02:55]}  e5 {[%clk 0:03:00]} 7. Nb3 {[%clk 0:02:54]}  Be6 {[%clk 0:03:00]} 8. f4 {[%clk 0:02:53]}  exf4 {[%clk 0:02:57]} 9. Bxf4 {[%clk 0:02:52]}  Nc6 {[%clk 0:02:54]} 10. Qd2 {[%clk 0:02:50]}  Ne5 {[%clk 0:02:42]} 11. Nd4 {[%clk 0:02:37]}  Be7 {[%clk 0:02:30]} 12. Nxe6 {[%clk 0:02:20]}  fxe6 {[%clk 0:02:31]} 13. Bxe5 {[%clk 0:02:20]}  dxe5 {[%clk 0:02:31]} 14. Qxd8+ {[%clk 0:02:19]}  Rxd8 {[%clk 0:02:30]} 15. Bc4 {[%clk 0:02:16]}  Kf7 {[%clk 0:02:28]} 16. O-O {[%clk 0:02:13]}  b5 {[%clk 0:02:20]} 17. Bb3 {[%clk 0:02:05]}  Bc5+ {[%clk 0:02:20]} 18. Kh2 {[%clk 0:02:00]}  Rhe8 {[%clk 0:02:21]} 19. Ne2 {[%clk 0:01:56]}  Ke7 {[%clk 0:02:14]} 20. Ng3 {[%clk 0:01:54]}  Rd4 {[%clk 0:02:07]} 21. Rfe1 {[%clk 0:01:41]}  Red8 {[%clk 0:01:55]} 22. a4 {[%clk 0:01:26]}  b4 {[%clk 0:01:51]} 23. Rac1 {[%clk 0:01:21]}  Rd2 {[%clk 0:01:48]} 24. a5 {[%clk 0:00:47]}  Bf2 {[%clk 0:01:43]} 25. Rf1 {[%clk 0:00:36]}  Bxg3+ {[%clk 0:01:42]} 26. Kxg3 {[%clk 0:00:36]}  Nxe4+ {[%clk 0:01:43]} 27. Kh2 {[%clk 0:00:37]}  Nf6 {[%clk 0:01:31]} 28. Rce1 {[%clk 0:00:31]}  e4 {[%clk 0:01:19]} 29. Rf4 {[%clk 0:00:22]}  Kd6 {[%clk 0:00:47]} 30. Rfxe4 {[%clk 0:00:16]}  Nxe4 {[%clk 0:00:46]} 31. Rxe4 {[%clk 0:00:17]}  e5 {[%clk 0:00:44]} 32. Rxb4 {[%clk 0:00:16]}  Kc5 {[%clk 0:00:41]} 33. Rb6 {[%clk 0:00:14]}  R8d6 {[%clk 0:00:41]} 34. Rb7 {[%clk 0:00:14]}  Rd7 {[%clk 0:00:40]} 35. Rb6 {[%clk 0:00:14]}  R2d6 {[%clk 0:00:41]} 36. Rb8 {[%clk 0:00:14]}  e4 {[%clk 0:00:38]} 37. c3 {[%clk 0:00:13]}  e3 {[%clk 0:00:28]} 38. Rc8+ {[%clk 0:00:12]}  Kb5 {[%clk 0:00:24]} 39. Rb8+ {[%clk 0:00:12]}  Kxa5 {[%clk 0:00:20]} 40. Bc2 {[%clk 0:00:06]}  Rb6 {[%clk 0:00:14]} 41. b4+ {[%clk 0:00:06]}  Kb5 {[%clk 0:00:15]} 42. c4+ {[%clk 0:00:06]}  Kc6 {[%clk 0:00:12]} 43. Be4+ {[%clk 0:00:05]}  Kc7 {[%clk 0:00:12]} 44. Re8 {[%clk 0:00:04]}  e2 {[%clk 0:00:10]} 45. Bf3 {[%clk 0:00:04]}  Rxb4 {[%clk 0:00:10]} 46. Rxe2 {[%clk 0:00:03]}  Rxc4 {[%clk 0:00:09]} 47. Re6 {[%clk 0:00:03]}  Rc2 {[%clk 0:00:08]} 48. Rxa6 {[%clk 0:00:03]}  Rf7 {[%clk 0:00:07]} 49. Ra7+ {[%clk 0:00:03]}  Kd6 {[%clk 0:00:07]} 50. Rxf7 {[%clk 0:00:04]}  g5 {[%clk 0:00:06]} 51. Rxh7 {[%clk 0:00:04]}  Ke5 {[%clk 0:00:07]} 52. Rg7 {[%clk 0:00:04]}  Kf4 {[%clk 0:00:07]} 53. Rf7+ {[%clk 0:00:04]}  Ke5 {[%clk 0:00:07]} 54. Kg3 {[%clk 0:00:04]}  Rc3 {[%clk 0:00:07]} 55. Kg4 {[%clk 0:00:04]}  Rc8 {[%clk 0:00:07]} 56. Kxg5 {[%clk 0:00:04]}  Rg8+ {[%clk 0:00:07]} 57. Kh4 {[%clk 0:00:04]}  Ke6 {[%clk 0:00:08]} 58. Rf4 {[%clk 0:00:04]}  Rh8+ {[%clk 0:00:08]} 59. Kg3 {[%clk 0:00:04]}  Rg8+ {[%clk 0:00:09]} 60. Rg4 {[%clk 0:00:05]}  Rf8 {[%clk 0:00:08]} 61. h4 {[%clk 0:00:06]}  Ke5 {[%clk 0:00:09]} 62. h5 {[%clk 0:00:06]}  Rh8 {[%clk 0:00:09]} 63. Rg5+ {[%clk 0:00:05]}  Kf6 {[%clk 0:00:10]} 64. Kh4 {[%clk 0:00:06]}  Rd8 {[%clk 0:00:09]} 65. Ra5 {[%clk 0:00:06]}  Rd4+ {[%clk 0:00:10]} 66. g4 {[%clk 0:00:06]}  Rd8 {[%clk 0:00:09]} 67. Ra6+ {[%clk 0:00:07]}  Kg7 {[%clk 0:00:10]} 68. h6+ {[%clk 0:00:07]}  Kh7 {[%clk 0:00:10]} 69. Be4+ {[%clk 0:00:07]}  Kh8 {[%clk 0:00:11]} 70. Kg5 {[%clk 0:00:07]}  Rg8+ {[%clk 0:00:10]} 71. Kh5 {[%clk 0:00:08]}  Rd8 {[%clk 0:00:10]} 72. Ra7 {[%clk 0:00:07]}  Kg8 {[%clk 0:00:08]} 73. g5 {[%clk 0:00:08]}  Kh8 {[%clk 0:00:09]} 74. h7 {[%clk 0:00:08]}  Rc8 {[%clk 0:00:08]} 75. Re7 {[%clk 0:00:05]}  Rb8 {[%clk 0:00:08]} 76. Rf7 {[%clk 0:00:05]}  Rc8 {[%clk 0:00:08]} 77. Rf6 {[%clk 0:00:05]}  Rd8 {[%clk 0:00:08]} 78. Rg6 {[%clk 0:00:06]}  Re8 {[%clk 0:00:07]} 79. Rg8+ {[%clk 0:00:06]}  Rxg8 {[%clk 0:00:08]} 80. hxg8=Q+ {[%clk 0:00:06]}  Kxg8 {[%clk 0:00:09]} 81. Kg6 {[%clk 0:00:07]}  Kh8 {[%clk 0:00:10]} 82. Bd3 {[%clk 0:00:06]}  Kg8 {[%clk 0:00:10]} 83. Be2 {[%clk 0:00:06]}  Kh8 {[%clk 0:00:11]} 84. Kf7 {[%clk 0:00:06]}  Kh7 {[%clk 0:00:10]} 85. g6+ {[%clk 0:00:07]}  Kh6 {[%clk 0:00:11]} 86. g7 {[%clk 0:00:08]}  Kg5 {[%clk 0:00:11]} 87. g8=Q+ {[%clk 0:00:09]} 1-0


[Site "https://www.chess.com"]

[Event "Titled Tuesday Blitz April 25 Early 2023"]
[White "Tsyhanchuk, Stanislav"]
[Black "Yurasova, Daria"]
[WhiteFideId "13505130"]
[BlackFideId "34146919"]
[WhiteElo "2173"]
[BlackElo "2134"]
[Result "1-0"]
[Round "02"]
[TimeControl "180+2"]
[Date "2023.04.25"]
[WhiteClock "0:00:15"]
[BlackClock "0:00:03"]

1. c4 {[%clk 0:03:00]}  c6 {[%clk 0:02:59]} 2. Nc3 {[%clk 0:03:00]}  d5 {[%clk 0:02:59]} 3. e3 {[%clk 0:03:01]}  Nf6 {[%clk 0:02:59]} 4. Nf3 {[%clk 0:03:01]}  e6 {[%clk 0:02:57]} 5. b3 {[%clk 0:03:00]}  Be7 {[%clk 0:02:57]} 6. Bb2 {[%clk 0:03:00]}  O-O {[%clk 0:02:58]} 7. d4 {[%clk 0:03:00]}  Nbd7 {[%clk 0:02:50]} 8. Bd3 {[%clk 0:02:58]}  b6 {[%clk 0:02:49]} 9. O-O {[%clk 0:02:58]}  Bb7 {[%clk 0:02:50]} 10. Qc2 {[%clk 0:02:56]}  h6 {[%clk 0:02:49]} 11. e4 {[%clk 0:02:56]}  dxe4 {[%clk 0:02:48]} 12. Nxe4 {[%clk 0:02:57]}  Nxe4 {[%clk 0:02:49]} 13. Bxe4 {[%clk 0:02:57]}  Nf6 {[%clk 0:02:49]} 14. Bd3 {[%clk 0:02:55]}  c5 {[%clk 0:02:49]} 15. Rad1 {[%clk 0:02:54]}  Bxf3 {[%clk 0:02:47]} 16. gxf3 {[%clk 0:02:55]}  Qc7 {[%clk 0:02:47]} 17. d5 {[%clk 0:02:45]}  exd5 {[%clk 0:02:42]} 18. cxd5 {[%clk 0:02:46]}  Rad8 {[%clk 0:02:38]} 19. Be4 {[%clk 0:02:28]}  Nxe4 {[%clk 0:02:25]} 20. fxe4 {[%clk 0:02:29]}  Bd6 {[%clk 0:02:25]} 21. f3 {[%clk 0:02:29]}  Be5 {[%clk 0:02:21]} 22. Bxe5 {[%clk 0:02:28]}  Qxe5 {[%clk 0:02:22]} 23. f4 {[%clk 0:02:27]}  Qh5 {[%clk 0:02:17]} 24. e5 {[%clk 0:02:24]}  Kh8 {[%clk 0:02:07]} 25. Qg2 {[%clk 0:02:17]}  b5 {[%clk 0:01:56]} 26. Qf3 {[%clk 0:02:10]}  Qf5 {[%clk 0:01:53]} 27. Kh1 {[%clk 0:02:03]}  c4 {[%clk 0:01:50]} 28. bxc4 {[%clk 0:01:58]}  bxc4 {[%clk 0:01:51]} 29. Rd4 {[%clk 0:01:56]}  Rc8 {[%clk 0:01:43]} 30. d6 {[%clk 0:01:56]}  c3 {[%clk 0:01:36]} 31. d7 {[%clk 0:01:51]}  Rcd8 {[%clk 0:01:36]} 32. Qc6 {[%clk 0:01:42]}  c2 {[%clk 0:01:30]} 33. Rc1 {[%clk 0:01:36]}  Qh3 {[%clk 0:00:59]} 34. Qd5 {[%clk 0:01:32]}  Qe3 {[%clk 0:00:39]} 35. Rxc2 {[%clk 0:01:17]}  Rb8 {[%clk 0:00:29]} 36. Rd1 {[%clk 0:01:13]}  Qxf4 {[%clk 0:00:19]} 37. Rg2 {[%clk 0:01:05]}  Rbd8 {[%clk 0:00:19]} 38. Rdg1 {[%clk 0:01:00]}  Rg8 {[%clk 0:00:19]} 39. e6 {[%clk 0:00:51]}  fxe6 {[%clk 0:00:19]} 40. Qxe6 {[%clk 0:00:52]}  Qf3 {[%clk 0:00:13]} 41. h3 {[%clk 0:00:47]}  Qb7 {[%clk 0:00:05]} 42. Rd1 {[%clk 0:00:45]}  Rgf8 {[%clk 0:00:06]} 43. Qe7 {[%clk 0:00:40]}  Rg8 {[%clk 0:00:04]} 44. Kh2 {[%clk 0:00:38]}  Qf3 {[%clk 0:00:04]} 45. Qe2 {[%clk 0:00:35]}  Qf4+ {[%clk 0:00:04]} 46. Kh1 {[%clk 0:00:35]}  Qf5 {[%clk 0:00:05]} 47. Qg4 {[%clk 0:00:33]}  Qf7 {[%clk 0:00:04]} 48. Kh2 {[%clk 0:00:29]}  Qe7 {[%clk 0:00:02]} 49. Rdd2 {[%clk 0:00:28]}  Qf7 {[%clk 0:00:03]} 50. Rgf2 {[%clk 0:00:27]}  Qe7 {[%clk 0:00:03]} 51. Rfe2 {[%clk 0:00:27]}  Qf7 {[%clk 0:00:03]} 52. Kg2 {[%clk 0:00:25]}  Qf6 {[%clk 0:00:03]} 53. Rd3 {[%clk 0:00:21]}  Qc6+ {[%clk 0:00:03]} 54. Kh2 {[%clk 0:00:20]}  Qc7+ {[%clk 0:00:04]} 55. Kg2 {[%clk 0:00:19]}  Qc6+ {[%clk 0:00:04]} 56. Kf2 {[%clk 0:00:19]}  Qf6+ {[%clk 0:00:04]} 57. Kg1 {[%clk 0:00:19]}  Qb6+ {[%clk 0:00:05]} 58. Qd4 {[%clk 0:00:18]}  Qg6+ {[%clk 0:00:04]} 59. Rg2 {[%clk 0:00:18]}  Qf7 {[%clk 0:00:05]} 60. Qd6 {[%clk 0:00:17]}  Rgf8 {[%clk 0:00:04]} 61. Kh2 {[%clk 0:00:16]}  Rg8 {[%clk 0:00:03]} 62. Qd4 {[%clk 0:00:16]}  Qe7 {[%clk 0:00:03]} 63. Rg6 {[%clk 0:00:15]}  Qf7 {[%clk 0:00:03]} 64. Rxh6# {[%clk 0:00:15]} 1-0


[Site "https://www.chess.com"]

[Event "Titled Tuesday Blitz April 25 Early 2023"]
[White "Orzech, Dominik"]
[Black "Garcia Almaguer, Juan Manuel"]
[WhiteFideId "1115065"]
[BlackFideId "5110491"]
[WhiteElo "2260"]
[BlackElo "2117"]
[Result "0-1"]
[Round "02"]
[TimeControl "180+2"]
[Date "2023.04.25"]
[WhiteClock "0:00:58"]
[BlackClock "0:00:22"]

1. d4 {[%clk 0:03:00]}  Nf6 {[%clk 0:02:59]} 2. Nf3 {[%clk 0:03:01]}  e6 {[%clk 0:02:54]} 3. c4 {[%clk 0:02:54]}  d5 {[%clk 0:02:30]} 4. Nc3 {[%clk 0:02:53]}  Bb4 {[%clk 0:02:23]} 5. cxd5 {[%clk 0:02:49]}  exd5 {[%clk 0:02:21]} 6. Qa4+ {[%clk 0:02:49]}  Nc6 {[%clk 0:02:21]} 7. Bg5 {[%clk 0:02:49]}  Bxc3+ {[%clk 0:02:20]} 8. bxc3 {[%clk 0:02:46]}  h6 {[%clk 0:02:19]} 9. Bc1 {[%clk 0:02:46]}  Ne4 {[%clk 0:02:17]} 10. Ba3 {[%clk 0:02:40]}  Nxc3 {[%clk 0:02:07]} 11. Qc2 {[%clk 0:02:38]}  Nb5 {[%clk 0:02:04]} 12. Bc5 {[%clk 0:02:35]}  Nd6 {[%clk 0:02:03]} 13. Ne5 {[%clk 0:02:31]}  O-O {[%clk 0:01:59]} 14. Nxc6 {[%clk 0:02:29]}  bxc6 {[%clk 0:02:00]} 15. e3 {[%clk 0:02:30]}  Bf5 {[%clk 0:01:59]} 16. Qa4 {[%clk 0:02:23]}  Qd7 {[%clk 0:01:54]} 17. Ba6 {[%clk 0:02:23]}  Rfe8 {[%clk 0:01:46]} 18. O-O {[%clk 0:02:21]}  Re6 {[%clk 0:01:29]} 19. Rfc1 {[%clk 0:02:16]}  Rg6 {[%clk 0:01:28]} 20. Bxd6 {[%clk 0:02:12]}  Qxd6 {[%clk 0:01:23]} 21. Bb7 {[%clk 0:02:10]}  Rb8 {[%clk 0:01:13]} 22. Rxc6 {[%clk 0:02:07]}  Qd7 {[%clk 0:01:13]} 23. Qxa7 {[%clk 0:02:06]}  Rxb7 {[%clk 0:01:09]} 24. Qa8+ {[%clk 0:02:01]}  Qc8 {[%clk 0:01:05]} 25. Qa4 {[%clk 0:01:48]}  Rxc6 {[%clk 0:01:03]} 26. Qxc6 {[%clk 0:01:49]}  Qa8 {[%clk 0:00:51]} 27. Qc5 {[%clk 0:01:37]}  Be6 {[%clk 0:00:48]} 28. h3 {[%clk 0:01:34]}  Ra7 {[%clk 0:00:47]} 29. a3 {[%clk 0:01:31]}  Ra5 {[%clk 0:00:48]} 30. Qb4 {[%clk 0:01:27]}  Ra4 {[%clk 0:00:47]} 31. Qc5 {[%clk 0:01:26]}  Rc4 {[%clk 0:00:47]} 32. Qe7 {[%clk 0:01:27]}  Qa4 {[%clk 0:00:47]} 33. Rb1 {[%clk 0:01:26]}  Qa7 {[%clk 0:00:40]} 34. h4 {[%clk 0:01:22]}  Rc3 {[%clk 0:00:36]} 35. h5 {[%clk 0:01:19]}  Qa8 {[%clk 0:00:26]} 36. g3 {[%clk 0:01:16]}  Rxa3 {[%clk 0:00:24]} 37. Qxc7 {[%clk 0:01:15]}  Ra1 {[%clk 0:00:24]} 38. Rxa1 {[%clk 0:01:13]}  Qxa1+ {[%clk 0:00:25]} 39. Kh2 {[%clk 0:01:13]}  Qd1 {[%clk 0:00:25]} 40. Qe5 {[%clk 0:01:12]}  Qf3 {[%clk 0:00:23]} 41. Kg1 {[%clk 0:01:01]}  Bh3 {[%clk 0:00:22]} 42. Qe8+ {[%clk 0:00:58]}  Kh7 {[%clk 0:00:22]} 43. Qxf7 {[%clk 0:00:58]}  Qg2# {[%clk 0:00:22]} 0-1


[Site "https://www.chess.com"]

[Event "Titled Tuesday Blitz April 25 Early 2023"]
[White "Shtivelband, Richard"]
[Black "Goncalves, Davi Sulzbacher"]
[WhiteFideId "2017342"]
[BlackFideId "2154510"]
[WhiteElo "2248"]
[BlackElo "2182"]
[Result "1-0"]
[Round "02"]
[TimeControl "180+2"]
[Date "2023.04.25"]
[WhiteClock "0:00:06"]
[BlackClock "0:00:02"]

1. e4 {[%clk 0:02:59]}  c5 {[%clk 0:02:59]} 2. Nf3 {[%clk 0:02:56]}  d6 {[%clk 0:02:58]} 3. d4 {[%clk 0:02:55]}  cxd4 {[%clk 0:02:59]} 4. Nxd4 {[%clk 0:02:54]}  Nf6 {[%clk 0:02:59]} 5. Nc3 {[%clk 0:02:53]}  a6 {[%clk 0:03:00]} 6. Bd3 {[%clk 0:02:51]}  e5 {[%clk 0:02:58]} 7. Nde2 {[%clk 0:02:48]}  Be6 {[%clk 0:02:53]} 8. f4 {[%clk 0:02:44]}  Qc7 {[%clk 0:02:47]} 9. O-O {[%clk 0:02:36]}  Be7 {[%clk 0:02:44]} 10. Kh1 {[%clk 0:02:32]}  O-O {[%clk 0:02:39]} 11. Be3 {[%clk 0:02:18]}  Nbd7 {[%clk 0:02:31]} 12. b3 {[%clk 0:02:13]}  exf4 {[%clk 0:02:06]} 13. Bxf4 {[%clk 0:02:11]}  Ne5 {[%clk 0:02:06]} 14. Nd5 {[%clk 0:01:47]}  Nxd5 {[%clk 0:01:09]} 15. exd5 {[%clk 0:01:46]}  Bxd5 {[%clk 0:01:10]} 16. Bxh7+ {[%clk 0:01:45]}  Kxh7 {[%clk 0:01:11]} 17. Qxd5 {[%clk 0:01:44]}  Qxc2 {[%clk 0:01:11]} 18. Nd4 {[%clk 0:01:42]}  Qg6 {[%clk 0:00:44]} 19. Rac1 {[%clk 0:01:33]}  Rac8 {[%clk 0:00:38]} 20. Rxc8 {[%clk 0:00:59]}  Rxc8 {[%clk 0:00:39]} 21. Bxe5 {[%clk 0:00:58]}  dxe5 {[%clk 0:00:38]} 22. Qxb7 {[%clk 0:00:58]}  Qd3 {[%clk 0:00:19]} 23. Rg1 {[%clk 0:00:53]}  Re8 {[%clk 0:00:09]} 24. Nc6 {[%clk 0:00:47]}  Bc5 {[%clk 0:00:07]} 25. Qxf7 {[%clk 0:00:39]}  Qg6 {[%clk 0:00:07]} 26. Qxg6+ {[%clk 0:00:35]}  Kxg6 {[%clk 0:00:08]} 27. Re1 {[%clk 0:00:31]}  e4 {[%clk 0:00:08]} 28. b4 {[%clk 0:00:29]}  Bf2 {[%clk 0:00:08]} 29. Re2 {[%clk 0:00:25]}  e3 {[%clk 0:00:08]} 30. g3 {[%clk 0:00:19]}  Rc8 {[%clk 0:00:08]} 31. Ne5+ {[%clk 0:00:17]}  Kf5 {[%clk 0:00:08]} 32. Nf3 {[%clk 0:00:17]}  Ke4 {[%clk 0:00:08]} 33. Kg2 {[%clk 0:00:15]}  Kd3 {[%clk 0:00:09]} 34. Rb2 {[%clk 0:00:13]}  Rc1 {[%clk 0:00:06]} 35. Ne5+ {[%clk 0:00:12]}  Ke4 {[%clk 0:00:06]} 36. Nf3 {[%clk 0:00:11]}  Be1 {[%clk 0:00:06]} 37. Re2 {[%clk 0:00:08]}  Bxb4 {[%clk 0:00:05]} 38. g4 {[%clk 0:00:08]}  Bd6 {[%clk 0:00:03]} 39. h4 {[%clk 0:00:07]}  Bf4 {[%clk 0:00:03]} 40. g5 {[%clk 0:00:06]}  Rd1 {[%clk 0:00:03]} 41. Re1 {[%clk 0:00:06]}  Rxe1 {[%clk 0:00:03]} 42. Nxe1 {[%clk 0:00:07]}  e2 {[%clk 0:00:02]} 43. Kf2 {[%clk 0:00:06]} 1-0


[Site "https://www.chess.com"]

[Event "Titled Tuesday Blitz April 25 Early 2023"]
[White "Manukian, Artak"]
[Black "Coelho, Ramyres Santana"]
[WhiteFideId "13301373"]
[BlackFideId "2120690"]
[WhiteElo "2130"]
[BlackElo "1888"]
[Result "1-0"]
[Round "02"]
[TimeControl "180+2"]
[Date "2023.04.25"]
[WhiteClock "0:01:31"]
[BlackClock "0:01:28"]

1. e4 {[%clk 0:02:59]}  c5 {[%clk 0:02:44]} 2. Nf3 {[%clk 0:02:57]}  d6 {[%clk 0:02:36]} 3. Bb5+ {[%clk 0:02:55]}  Nd7 {[%clk 0:02:35]} 4. O-O {[%clk 0:02:53]}  a6 {[%clk 0:02:35]} 5. Bd3 {[%clk 0:02:50]}  Ne5 {[%clk 0:02:34]} 6. Be2 {[%clk 0:02:46]}  Nf6 {[%clk 0:02:33]} 7. Nc3 {[%clk 0:02:40]}  g6 {[%clk 0:02:32]} 8. a4 {[%clk 0:02:39]}  Bg7 {[%clk 0:02:32]} 9. d3 {[%clk 0:02:35]}  O-O {[%clk 0:02:32]} 10. Bf4 {[%clk 0:02:34]}  Nfd7 {[%clk 0:02:30]} 11. Qd2 {[%clk 0:02:34]}  b6 {[%clk 0:02:29]} 12. Bh6 {[%clk 0:02:33]}  Bb7 {[%clk 0:02:29]} 13. Bxg7 {[%clk 0:02:32]}  Kxg7 {[%clk 0:02:29]} 14. Ne1 {[%clk 0:02:29]}  Nc6 {[%clk 0:02:26]} 15. f4 {[%clk 0:02:29]}  Nd4 {[%clk 0:02:27]} 16. f5 {[%clk 0:02:26]}  Nxe2+ {[%clk 0:02:26]} 17. Nxe2 {[%clk 0:02:25]}  f6 {[%clk 0:02:25]} 18. Nf4 {[%clk 0:02:22]}  Qe8 {[%clk 0:02:11]} 19. Ne6+ {[%clk 0:02:22]}  Kf7 {[%clk 0:02:10]} 20. Qh6 {[%clk 0:02:18]}  Qc8 {[%clk 0:01:46]} 21. Qxh7+ {[%clk 0:02:13]}  Ke8 {[%clk 0:01:46]} 22. fxg6 {[%clk 0:01:46]}  Ne5 {[%clk 0:01:35]} 23. Nxf8 {[%clk 0:01:39]}  Qg4 {[%clk 0:01:28]} 24. g7 {[%clk 0:01:31]} 1-0


[Site "https://www.chess.com"]

[Event "Titled Tuesday Blitz April 25 Early 2023"]
[White "Benaddi, Mouhcine"]
[Black "Staudenhocker43"]
[WhiteFideId "9001050"]
[WhiteElo "2036"]
[BlackElo "2467"]
[Result "0-1"]
[Round "02"]
[TimeControl "180+2"]
[Date "2023.04.25"]
[WhiteClock "0:01:26"]
[BlackClock "0:01:44"]

1. Nf3 {[%clk 0:03:00]}  Nf6 {[%clk 0:02:59]} 2. g3 {[%clk 0:03:01]}  g6 {[%clk 0:02:59]} 3. Bg2 {[%clk 0:03:01]}  Bg7 {[%clk 0:02:59]} 4. O-O {[%clk 0:03:02]}  c5 {[%clk 0:03:00]} 5. c4 {[%clk 0:03:01]}  O-O {[%clk 0:03:00]} 6. Nc3 {[%clk 0:03:02]}  Nc6 {[%clk 0:03:00]} 7. d3 {[%clk 0:03:02]}  d6 {[%clk 0:02:57]} 8. Rb1 {[%clk 0:03:01]}  e5 {[%clk 0:02:54]} 9. a3 {[%clk 0:03:01]}  a5 {[%clk 0:02:54]} 10. Ne1 {[%clk 0:02:58]}  Be6 {[%clk 0:02:53]} 11. Nc2 {[%clk 0:02:57]}  d5 {[%clk 0:02:52]} 12. cxd5 {[%clk 0:02:56]}  Nxd5 {[%clk 0:02:53]} 13. Ne3 {[%clk 0:02:52]}  Nde7 {[%clk 0:02:46]} 14. Ne4 {[%clk 0:02:51]}  b6 {[%clk 0:02:45]} 15. Ng5 {[%clk 0:02:50]}  Bd7 {[%clk 0:02:43]} 16. Qb3 {[%clk 0:02:42]}  a4 {[%clk 0:02:38]} 17. Qc4 {[%clk 0:02:33]}  h6 {[%clk 0:02:34]} 18. Ne4 {[%clk 0:02:22]}  Be6 {[%clk 0:02:34]} 19. Qc2 {[%clk 0:02:14]}  Nd4 {[%clk 0:02:33]} 20. Qd1 {[%clk 0:02:11]}  Rb8 {[%clk 0:02:23]} 21. Nc3 {[%clk 0:01:51]}  Bb3 {[%clk 0:02:17]} 22. Qd2 {[%clk 0:01:49]}  Qd7 {[%clk 0:02:12]} 23. Nc4 {[%clk 0:01:45]}  Qe6 {[%clk 0:02:07]} 24. e3 {[%clk 0:01:42]}  Ndc6 {[%clk 0:01:46]} 25. Qe2 {[%clk 0:01:30]}  Rfd8 {[%clk 0:01:45]} 26. Nd2 {[%clk 0:01:26]}  Bc2 {[%clk 0:01:44]} 0-1


[Site "https://www.chess.com"]